fUST/lending_fUST_20250908
["ID","MTS","AMOUNT","RATE_DAILY","PERIOD"]
[384320083,1757334663602,-592.06,0.0001726,2]
[384320084,1757334663612,-2040.37,0.0001726,2]
[384320085,1757334663622,-988.72,0.0001726,2]
[384320086,1757334663632,-1332.11,0.0001726,2]
[384320087,1757334663642,-480.0,0.0001726,2]
[384320088,1757334663651,-480.0,0.0001726,2]
[384320089,1757334663662,-486.68,0.0001726,2]
[384320090,1757334663673,-3500.0,0.0001726,2]
[384320091,1757334663683,-844.24324412,0.00017492,2]
[384320092,1757334663692,-821.44,0.00017534,2]
[384320093,1757334663702,-480.0,0.00017534,2]
[384320094,1757334663711,-505.82,0.00017534,2]
[384320095,1757334663721,-829.34,0.00017534,2]
[384320096,1757334663731,-480.0,0.00017534,2]
[384320097,1757334663740,-526.78,0.00017534,2]
[384320098,1757334663750,-2998.58,0.00017534,2]
[384320099,1757334663760,-480.0,0.00017534,2]
[384320100,1757334663770,-480.0,0.00017534,2]
[384320101,1757334663780,-480.0,0.00017534,2]
[384320102,1757334663789,-592.06,0.00017534,2]
[384320103,1757334663799,-2040.37,0.00017534,2]
[384320104,1757334663808,-988.72,0.00017534,2]
[384320105,1757334663818,-1332.11,0.00017534,2]
[384320106,1757334663828,-224.84331499,0.00017534,2]
[384320107,1757334663838,-480.0,0.00017534,2]
[384320108,1757334663848,-486.68,0.00017534,2]
[384320109,1757334663857,-500.0,0.00017541,2]
[384320110,1757334663867,-560.0,0.00017681,2]
[384320111,1757334663877,-3000.0,0.0001774,2]
[384320112,1757334663887,-250.0,0.00017743,2]
[384320113,1757334663897,-1964.4427313,0.00017781,2]
[384320114,1757334663907,-193.0,0.0001779,2]
[384320115,1757334663916,-194.0,0.0001779,2]
[384320116,1757334663927,-193.0,0.0001779,2]
[384320117,1757334663936,-823.0,0.0001779,2]
[384320118,1757334663945,-821.44,0.00017808,2]
[384320119,1757334663955,-480.0,0.00017808,2]
[384320120,1757334663964,-505.82,0.00017808,2]
[384320121,1757334663973,-829.34,0.00017808,2]
[384320122,1757334663984,-480.0,0.00017808,2]
[384320123,1757334663994,-526.78,0.00017808,2]
[384320124,1757334664004,-2998.58,0.00017808,2]
[384320125,1757334664013,-480.0,0.00017808,2]
[384320126,1757334664023,-480.0,0.00017808,2]
[384320127,1757334664033,-480.0,0.00017808,2]
[384320128,1757334664043,-592.06,0.00017808,2]
[384320129,1757334664052,-2040.37,0.00017808,2]
[384320130,1757334664061,-988.72,0.00017808,2]
[384320131,1757334664071,-1332.11,0.00017808,2]
[384320132,1757334664081,-480.0,0.00017808,2]
[384320133,1757334664091,-486.68,0.00017808,2]
[384320134,1757334664100,-4000.0,0.00017808,2]
[384320135,1757334664110,-3120.0,0.00017979,2]
[384320136,1757334664119,-1000.0,0.00017983,2]
[384320137,1757334664129,-26982.92864248,0.00018,2]
[384320138,1757334664138,-9577.07502092,0.00018,2]
[384320139,1757334664148,-11960.0,0.00018,2]
[384320140,1757334664157,-151.0,0.00018,2]
[384320141,1757334664166,-578.597548,0.00018,2]
[384320142,1757334664176,-151.0,0.00018,2]
[384320143,1757334664185,-578.597548,0.00018,2]
[384320144,1757334664195,-578.597548,0.00018,2]
[384320145,1757334664204,-578.597548,0.00018,2]
[384320146,1757334664214,-29494.45132994,0.00018,2]
[384320147,1757334664225,-644.077091,0.00018,2]
[384320148,1757334664235,-644.077091,0.00018,2]
[384320149,1757334664245,-644.077091,0.00018,2]
[384320150,1757334664254,-644.077091,0.00018,2]
[384320151,1757334664264,-151.0,0.00018,2]
[384320152,1757334664274,-151.0,0.00018,2]
[384320153,1757334664284,-151.0,0.00018,2]
[384320154,1757334664294,-151.005868,0.00018,2]
[384320155,1757334664304,-856.35842,0.00018,2]
[384320156,1757334664315,-856.35842,0.00018,2]
[384320157,1757334664325,-856.35842,0.00018,2]
[384320158,1757334664335,-856.35842,0.00018,2]
[384320159,1757334664344,-314.140138,0.00018,2]
[384320160,1757334664354,-314.140138,0.00018,2]
[384320161,1757334664364,-314.140138,0.00018,2]
[384320162,1757334664374,-314.140138,0.00018,2]
[384320163,1757334664383,-821.44,0.00018082,2]
[384320164,1757334664392,-480.0,0.00018082,2]
[384320165,1757334664401,-505.82,0.00018082,2]
[384320166,1757334664410,-829.34,0.00018082,2]
[384320167,1757334664420,-554.02,0.00018082,2]
[384320168,1757334664429,-526.78,0.00018082,2]
[384320169,1757334664439,-2998.58,0.00018082,2]
[384320170,1757334664449,-480.0,0.00018082,2]
[384320171,1757334664459,-294.85,0.00018082,2]
[384320172,1757334664469,-480.0,0.00018082,2]
[384320173,1757334664478,-592.06,0.00018082,2]
[384320174,1757334664488,-2040.37,0.00018082,2]
[384320175,1757334664497,-988.72,0.00018082,2]
[384320176,1757334664507,-1332.11,0.00018082,2]
[384320177,1757334664520,-480.0,0.00018082,2]
[384320178,1757334664530,-486.68,0.00018082,2]
[384320179,1757334664540,-660.0,0.00018229,2]
[384320180,1757334664550,-186.92216063,0.00018256,2]
[384320181,1757334664561,-2500.0,0.00018288,2]
[384320182,1757334664571,-821.44,0.00018356,2]
[384320183,1757334664580,-480.0,0.00018356,2]
[384320184,1757334664590,-505.82,0.00018356,2]
[384320185,1757334664602,-829.34,0.00018356,2]
[384320186,1757334664612,-526.78,0.00018356,2]
[384320187,1757334664622,-2998.58,0.00018356,2]
[384320188,1757334664632,-480.0,0.00018356,2]
[384320189,1757334664642,-480.0,0.00018356,2]
[384320190,1757334664651,-592.06,0.00018356,2]
[384320191,1757334664661,-2040.37,0.00018356,2]
[384320192,1757334664671,-988.72,0.00018356,2]
[384320193,1757334664681,-1332.11,0.00018356,2]
[384320194,1757334664691,-480.0,0.00018356,2]
[384320195,1757334664701,-486.68,0.00018356,2]
[384320196,1757334664711,-4500.0,0.00018356,2]
[384320197,1757334664720,-500.0,0.00018465,2]
[384320198,1757334664730,-334.401333,0.00018493,2]
[384320199,1757334664739,-821.44,0.0001863,2]
[384320200,1757334664749,-480.0,0.0001863,2]
[384320201,1757334664758,-505.82,0.0001863,2]
[384320202,1757334664767,-829.34,0.0001863,2]
[384320203,1757334664777,-526.78,0.0001863,2]
[384320204,1757334664786,-2998.58,0.0001863,2]
[384320205,1757334664795,-480.0,0.0001863,2]
[384320206,1757334664805,-308.32,0.0001863,2]
[384320207,1757334664815,-592.06,0.0001863,2]
[384320208,1757334664824,-2040.37,0.0001863,2]
[384320209,1757334664833,-988.72,0.0001863,2]
[384320210,1757334664842,-1332.11,0.0001863,2]
[384320211,1757334664852,-480.0,0.0001863,2]
[384320212,1757334664861,-486.68,0.0001863,2]
[384320213,1757334664871,-760.0,0.00018777,2]
[384320214,1757334664882,-151.0,0.00018879,2]
[384320215,1757334664891,-151.0,0.00018879,2]
[384320216,1757334664901,-151.0,0.00018879,2]
[384320217,1757334664909,-151.0,0.00018879,2]
[384320218,1757334664918,-151.0,0.00018879,2]
[384320219,1757334664928,-175.870109,0.00018879,2]
[384320220,1757334664938,-821.44,0.00018904,2]
[384320221,1757334664947,-156.96,0.00018904,2]
[384320222,1757334664957,-505.82,0.00018904,2]
[384320223,1757334664966,-829.34,0.00018904,2]
[384320224,1757334664976,-526.78,0.00018904,2]
[384320225,1757334664986,-2998.58,0.00018904,2]
[384320226,1757334664996,-480.0,0.00018904,2]
[384320227,1757334665006,-592.06,0.00018904,2]
[384320228,1757334665016,-2040.37,0.00018904,2]
[384320229,1757334665026,-988.72,0.00018904,2]
[384320230,1757334665035,-1332.11,0.00018904,2]
[384320231,1757334665044,-480.0,0.00018904,2]
[384320232,1757334665054,-486.68,0.00018904,2]
[384320233,1757334665064,-5000.0,0.00018904,2]
[384320234,1757334665073,-4027.0,0.00019,2]
[384320235,1757334665083,-123602.56140248,0.00019063,7]
[384320236,1757334665093,-160.0,0.000191,7]
[384320237,1757334665102,-821.44,0.00019178,2]
[384320238,1757334665111,-505.82,0.00019178,2]
[384320239,1757334665121,-829.34,0.00019178,2]
[384320240,1757334665132,-526.78,0.00019178,2]
[384320241,1757334665141,-2998.58,0.00019178,2]
[384320242,1757334665151,-177.62,0.00019178,2]
[384320243,1757334665160,-592.06,0.00019178,2]
[384320244,1757334665170,-2040.37,0.00019178,2]
[384320245,1757334665179,-988.72,0.00019178,2]
[384320246,1757334665189,-1332.11,0.00019178,2]
[384320247,1757334665198,-154.47,0.00019178,2]
[384320248,1757334665207,-486.68,0.00019178,2]
[384320249,1757334665217,-5000.0,0.00019178,2]
[384320250,1757334665227,-860.0,0.00019325,2]
[384320251,1757334665238,-500.0,0.00019388,2]
[384320252,1757334665247,-500.0,0.0001944,2]
[384320253,1757334665256,-821.44,0.00019452,2]
[384320254,1757334665266,-505.82,0.00019452,2]
[384320255,1757334665275,-829.34,0.00019452,2]
[384320256,1757334665285,-526.78,0.00019452,2]
[384320257,1757334665294,-2998.58,0.00019452,2]
[384320258,1757334665303,-592.06,0.00019452,2]
[384320259,1757334665313,-2040.37,0.00019452,2]
[384320260,1757334665323,-988.72,0.00019452,2]
[384320261,1757334665333,-1332.11,0.00019452,2]
[384320262,1757334665343,-486.68,0.00019452,2]
[384320263,1757334665353,-5500.0,0.00019452,2]
[384320264,1757334665362,-1152.0,0.000195,2]
[384320265,1757334665371,-821.44,0.00019726,2]
[384320266,1757334665381,-505.82,0.00019726,2]
[384320267,1757334665390,-829.34,0.00019726,2]
[384320268,1757334665400,-526.78,0.00019726,2]
[384320269,1757334665409,-2998.58,0.00019726,2]
[384320270,1757334665419,-592.06,0.00019726,2]
[384320271,1757334665429,-2040.37,0.00019726,2]
[384320272,1757334665439,-988.72,0.00019726,2]
[384320273,1757334665448,-1332.11,0.00019726,2]
[384320274,1757334665459,-486.68,0.00019726,2]
[384320275,1757334665468,-1000.0,0.00019781,20]
[384320276,1757334665477,-244.0,0.00019781,20]
[384320277,1757334665487,-960.0,0.00019873,2]
[384320278,1757334665497,-151.640256,0.000199,2]
[384320279,1757334665506,-151.640256,0.000199,2]
[384320280,1757334665516,-151.640256,0.000199,2]
[384320281,1757334665528,-151.640256,0.000199,2]
[384320282,1757334665537,-151.0,0.000199,2]
[384320283,1757334665547,-154.981116,0.000199,2]
[384320284,1757334665556,-151.0,0.000199,2]
[384320285,1757334665566,-151.0,0.000199,2]
[384320286,1757334665576,-151.0,0.000199,2]
[384320287,1757334665585,-151.0,0.000199,2]
[384320288,1757334665596,-151.0,0.000199,2]
[384320289,1757334665605,-151.0,0.000199,2]
[384320290,1757334665614,-287.349545,0.000199,2]
[384320291,1757334665624,-158.55,0.000199,2]
[384320292,1757334665633,-158.55,0.000199,2]
[384320293,1757334665643,-158.55,0.000199,2]
[384320294,1757334665652,-158.55,0.000199,2]
[384320295,1757334665662,-20002.11740586,0.000199,2]
[384320296,1757334665671,-5000.0,0.00019935,2]
[384320297,1757334665681,-6000.0,0.0002,2]
[384320298,1757334665690,-154.14195266,0.0002,2]
[384320299,1757334665699,-821.66,0.0002,2]
[384320300,1757334665709,-505.84,0.0002,2]
[384320301,1757334665718,-328.601437,0.0002,2]
[384320302,1757334665727,-328.601437,0.0002,2]
[384320303,1757334665832,-328.601437,0.0002,2]
[384320304,1757334665843,-328.601437,0.0002,2]
[384320305,1757334665853,-151.0,0.0002,2]
[384320306,1757334665863,-829.54,0.0002,2]
[384320307,1757334665874,-158.151238,0.0002,2]
[384320308,1757334665883,-272.868647,0.0002,2]
[384320309,1757334665893,-272.868647,0.0002,2]
[384320310,1757334665903,-272.868647,0.0002,2]
[384320311,1757334665912,-272.868647,0.0002,2]
[384320312,1757334665923,-555.89759,0.0002,2]
[384320313,1757334665932,-555.89759,0.0002,2]
[384320314,1757334665941,-555.89759,0.0002,2]
[384320315,1757334665951,-686.849625,0.0002,2]
[384320316,1757334665960,-187.892045,0.0002,2]
[384320317,1757334665970,-555.89759,0.0002,2]
[384320318,1757334665979,-526.85,0.0002,2]
[384320319,1757334665989,-686.849625,0.0002,2]
[384320320,1757334665998,-187.892045,0.0002,2]
[384320321,1757334666008,-151.0,0.0002,2]
[384320322,1757334666017,-187.892045,0.0002,2]
[384320323,1757334666027,-686.849625,0.0002,2]
[384320324,1757334666036,-151.0,0.0002,2]
[384320325,1757334666046,-187.892045,0.0002,2]
[384320326,1757334666055,-686.849625,0.0002,2]
[384320327,1757334666064,-2998.81955113,0.0002,2]
[384320328,1757334666074,-181.301176,0.0002,2]
[384320329,1757334666083,-2549.112736,0.0002,2]
[384320330,1757334666092,-181.301176,0.0002,2]
[384320331,1757334666101,-2549.112736,0.0002,2]
[384320332,1757334666110,-181.301176,0.0002,2]
[384320333,1757334666120,-2549.112736,0.0002,2]
[384320334,1757334666129,-181.301176,0.0002,2]
[384320335,1757334666138,-2549.112736,0.0002,2]
[384320336,1757334666149,-615.95124283,0.0002,2]
[384320337,1757334666158,-185.9022713,0.0002,2]
[384320338,1757334666168,-592.12428919,0.0002,2]
[384320339,1757334666178,-2040.48,0.0002,2]
[384320340,1757334666187,-988.88,0.0002,2]
[384320341,1757334666197,-1332.32148615,0.0002,2]
[384320342,1757334666207,-4000.0,0.0002,4]
[384320343,1757334666216,-486.8767886,0.0002,2]
[384320344,1757334666226,-436.932389,0.00020187,2]
[384320345,1757334666234,-1000.0,0.000202,2]
[384320346,1757334666243,-409.0,0.00020229,2]
[384320347,1757334666252,-856.35842,0.00020272,2]
[384320348,1757334666262,-856.35842,0.00020272,2]
[384320349,1757334666272,-856.35842,0.00020272,2]
[384320350,1757334666281,-856.35842,0.00020272,2]
[384320351,1757334666291,-603.25611584,0.00020357,2]
[384320352,1757334666300,-1000.0,0.00020402,2]
[384320353,1757334666310,-1060.0,0.00020421,2]
[384320354,1757334666320,-1000.0,0.000205,2]
[384320355,1757334666329,-6500.0,0.00020548,2]
[384320356,1757334666339,-1192.798923,0.00020548,2]
[384320357,1757334666348,-314.140138,0.00020548,2]
[384320358,1757334666358,-314.140138,0.00020548,2]
[384320359,1757334666367,-314.140138,0.00020548,2]
[384320360,1757334666376,-314.1401371,0.00020548,2]
[384320361,1757334666386,-317.0,0.00020576,2]
[384320362,1757334666395,-317.0,0.00020592,2]
[384320363,1757334666405,-317.0,0.00020596,2]
[384320364,1757334666415,-1000.0,0.00020606,2]
[384320365,1757334666424,-151.0,0.00020812,2]
[384320366,1757334666434,-192.973392,0.00020812,2]
[384320367,1757334666442,-192.973392,0.00020812,2]
[384320368,1757334666452,-192.973392,0.00020812,2]
[384320369,1757334666461,-192.973392,0.00020812,2]
[384320370,1757334666471,-151.0,0.00020812,2]
[384320371,1757334666481,-158.968489,0.00020812,2]
[384320372,1757334666491,-158.968489,0.00020812,2]
[384320373,1757334666501,-158.968489,0.00020812,2]
[384320374,1757334666511,-158.968489,0.00020812,2]
[384320375,1757334666525,-1000.0,0.00020812,2]
[384320376,1757334666540,-317.0,0.00020841,2]
[384320377,1757334666551,-317.0,0.00020907,2]
[384320378,1757334666561,-317.0,0.00020914,2]
[384320379,1757334666570,-1160.0,0.00020969,2]
[384320380,1757334666580,-317.0,0.00020983,2]
[384320381,1757334666589,-1000.0,0.00021,2]
[384320382,1757334666600,-295.999999,0.00021,2]
[384320383,1757334666610,-806.37225098,0.0002102,2]
[384320384,1757334666716,-193.62774902,0.0002102,2]
[384320385,1757334666726,-552.98283637,0.00021087,2]
[384320386,1757334666857,439.75,0.00012329,2]
[384320387,1757334668186,-234.20221807,0.00013376,2]
[384320388,1757334668368,-430.7,0.00013376,2]
[384320389,1757334669452,439.75,0.00012205,2]
[384320390,1757334669644,392.8,0.00012329,2]
[384320391,1757334669855,2100.41558864,0.00012763,2]
[384320392,1757334669877,7905.80913736,0.00012763,2]
[384320393,1757334670186,439.75,0.00012083,2]
[384320394,1757334670387,327.33,0.00012329,2]
[384320395,1757334670476,300.0,0.00012762,2]
[384320396,1757334673496,439.75,0.00011962,2]
[384320397,1757334674873,160.912332,0.00025,30]
[384320398,1757334684289,-250.82474176,0.00013242,2]
[384320399,1757334686664,-317.77456623,0.00013242,2]
[384320400,1757334690995,-269.09059717,0.00013242,2]
[384320401,1757334692579,587.37086264,0.00012845,2]
[384320402,1757334692603,194.36052236,0.00012845,2]
[384320403,1757334692699,-350.39889938,0.00013242,2]
[384320404,1757334693139,730.82005118,0.00012975,2]
[384320405,1757334698411,-300.0,0.00013183,2]
[384320406,1757334704034,-65.41002559,0.00013183,2]
[384320407,1757334704060,-106.22743428,0.00013242,2]
[384320408,1757334706251,-348.97667853,0.00013242,2]
[384320409,1757334711345,-163.55808399,0.00013242,2]
[384320410,1757334713011,-398.24056082,0.00013242,2]
[384320411,1757334714354,-465.16112464,0.00013242,2]
[384320412,1757334718334,-294.57134944,0.00013242,2]
[384320413,1757334722944,-173.04023055,0.00013183,2]
[384320414,1757334725839,-45.74088152,0.00013183,2]
[384320415,1757334725863,-187.87213874,0.00013241,2]
[384320416,1757334728660,-112.12786126,0.00013241,2]
[384320417,1757334728684,-119.41050492,0.00013242,2]
[384320418,1757334731545,-249.60110062,0.00013241,2]
[384320419,1757334734920,-161.32346793,0.00013241,2]
[384320420,1757334739460,-228.50869703,0.00013241,2]
[384320421,1757334741691,-335.67070833,0.00013241,2]
[384320422,1757334745002,-178.88526289,0.00013241,2]
[384320423,1757334746572,-46.0107632,0.00013241,2]
[384320424,1757334746596,-121.3837443,0.00013242,2]
[384320426,1757334748972,-329.26859235,0.00013242,2]
[384320427,1757334750609,-245.71661977,0.00013242,2]
[384320428,1757334751619,7347.35667967,0.0001311,2]
[384320429,1757334752261,-227.00801504,0.00013242,2]
[384320430,1757334756204,-179.82183482,0.00013242,2]
[384320431,1757334758563,-242.45773546,0.00013242,2]
[384320432,1757334762295,-181.34679544,0.00013242,2]
[384320433,1757334765349,-440.13023696,0.00013242,2]
[384320434,1757334768697,-371.8375455,0.00013242,2]
[384320435,1757334770745,-247.0321659,0.00013242,2]
[384320436,1757334772987,-310.51256784,0.00013242,2]
[384320437,1757334774846,338.56,0.00012329,2]
[384320438,1757334778282,-161.23327438,0.00013242,2]
[384320439,1757334780777,-167.33877011,0.00013242,2]
[384320440,1757334782869,-330.94100028,0.00013242,2]
[384320441,1757334785305,282.14,0.00012329,2]
[384320442,1757334786644,-169.05899972,0.00013241,2]
[384320443,1757334788672,-130.94100028,0.00013241,2]
[384320444,1757334788695,-166.5117253,0.00013242,2]
[384320445,1757334790578,1000.0,0.00012605,2]
[384320446,1757334792079,-274.35949989,0.00013242,2]
[384320447,1757334794357,-438.43093488,0.00013242,2]
[384320448,1757334795737,106.77274679,0.00012329,2]
[384320449,1757334795760,128.33725321,0.00012329,2]
[384320450,1757334796390,-339.74660172,0.00013242,2]
[384320451,1757334798053,-262.1340801,0.00013242,2]
[384320452,1757334802077,-167.3945075,0.00013242,2]
[384320453,1757334804340,-211.21256575,0.00013242,2]
[384320454,1757334805953,-292.01567721,0.00013242,2]
[384320455,1757334806170,195.93,0.00012329,2]
[384320456,1757334810098,-166.31394601,0.00013242,2]
[384320457,1757334813957,-375.57103764,0.00013242,2]
[384320458,1757334816660,163.27,0.00012329,2]
[384320459,1757334817467,-300.0,0.00013242,2]
[384320460,1757334819348,-200.0,0.00013242,2]
[384320461,1757334822184,-293.90784349,0.00013242,2]
[384320462,1757334826087,-519.90564708,0.00013242,2]
[384320463,1757334827145,816.4,0.00012329,2]
[384320464,1757334829059,-202.95413605,0.00013242,2]
[384320465,1757334831224,-300.48177785,0.00013242,2]
[384320466,1757334835589,-203.4359139,0.00013242,2]
[384320467,1757334837869,8696.07274679,0.0001311,2]
[384320468,1757334837892,5600.73951582,0.0001311,2]
[384320469,1757334846599,300.0,0.00013109,2]
[384320470,1757334857973,338.78,0.00012329,2]
[384320471,1757334863935,300.0,0.00013109,2]
[384320472,1757334872834,300.0,0.00013109,2]
[384320473,1757334881988,300.0,0.00013109,2]
[384320474,1757334882863,2860.49048418,0.00012548,2]
[384320475,1757334882886,246.43450722,0.00012548,2]
[384320476,1757334885440,1273.7195465,0.00012672,2]
[384320477,1757334889047,282.32,0.00012329,2]
[384320478,1757334890926,300.0,0.00013109,2]
[384320479,1757334899900,300.0,0.00013109,2]
[384320480,1757334909936,235.27,0.00012329,2]
[384320481,1757334918659,1219.78049409,0.00013144,2]
[384320482,1757334927723,1219.78049409,0.00013144,2]
[384320483,1757334945139,1219.78049409,0.00013144,2]
[384320484,1757334954156,1219.78049409,0.00013144,2]
[384320485,1757334971647,1219.78049409,0.00013144,2]
[384320486,1757334980916,322.41240772,0.00013144,2]
[384320487,1757334998515,940.95106811,0.00013144,2]
[384320488,1757334998538,278.82942598,0.00013144,2]
[384320489,1757335021019,9721.18057402,0.00012536,2]
[384320490,1757335021045,278.81942598,0.00012536,2]
[384320491,1757335023340,1219.78049409,0.00013144,2]
[384320492,1757335047642,1219.78049409,0.00013144,2]
[384320493,1757335072854,1219.78049409,0.00013144,2]
[384320494,1757335073822,681.0019812,0.0001252,2]
[384320496,1757335087622,171.679941,6.255e-05,2]
[384320497,1757335087830,171.679941,8.34e-05,2]
[384320498,1757335088028,171.679941,0.00010425,2]
[384320499,1757335088231,171.679941,0.0001251,2]
[384320500,1757335097555,623.42577087,0.0001311,2]
[384320501,1757335115846,623.42577087,0.0001311,2]
[384320502,1757335125156,623.42577087,0.0001311,2]
[384320503,1757335142980,623.42577087,0.0001311,2]
[384320504,1757335151989,623.42577087,0.0001311,2]
[384320506,1757335169583,623.42577087,0.0001311,2]
[384320507,1757335178907,623.42577087,0.0001311,2]
[384320508,1757335196067,330.14695046,0.0001311,2]
[384320509,1757335196090,293.27882041,0.0001311,2]
[384320510,1757335205001,623.42577087,0.0001311,2]
[384320511,1757335222997,623.42577087,0.0001311,2]
[384320512,1757335232413,623.42577087,0.0001311,2]
[384320513,1757335249315,623.42577087,0.0001311,2]
[384320514,1757335258234,623.42577087,0.0001311,2]
[384320515,1757335275428,623.42577087,0.0001311,2]
[384320516,1757335285091,623.42577087,0.0001311,2]
[384320517,1757335301594,623.42577087,0.0001311,2]
[384320518,1757335311881,623.42577087,0.0001311,2]
[384320519,1757335328569,623.42577087,0.0001311,2]
[384320520,1757335332946,160.912332,0.00025,30]
[384320521,1757335338035,893.38106538,0.0001311,2]
[384320522,1757335355887,1246.85154174,0.0001311,2]
[384320523,1757335381954,623.42577087,0.0001311,2]
[384320524,1757335409277,623.42577087,0.0001311,2]
[384320525,1757335436052,85.38932203,0.0001311,2]
[384320526,1757335436076,538.03644884,0.0001311,2]
[384320527,1757335462957,623.42577087,0.0001311,2]
[384320529,1757335489375,623.42577087,0.0001311,2]
[384320531,1757335514584,623.42577087,0.0001311,2]
[384320533,1757335540899,623.42577087,0.0001311,2]
[384320534,1757335566618,623.42577087,0.0001311,2]
[384320536,1757335592013,623.42577087,0.0001311,2]
[384320541,1757335617175,623.42577087,0.0001311,2]
[384320543,1757335638057,623.42577087,0.0001311,2]
[384320544,1757335723977,4474.5673842,0.00012515,2]
[384320545,1757335724001,10000.01,0.00012515,2]
[384320546,1757335724024,6478.3183321,0.00012515,2]
[384320547,1757335773794,666.0,0.00012555,2]
[384320548,1757335827104,257.5165399,0.00012528,2]
[384320581,1757335832289,-1200.0,0.00013369,2]
[384320583,1757335832299,-201.11350208,0.00013504,2]
[384320587,1757335832346,-998.88649792,0.00013504,2]
[384320588,1757335832355,-201.11350208,0.00013505,2]
[384320592,1757335834045,501.0,0.00013171,2]
[384320705,1757335840710,-0.0253778,0.0001337,2]
[384321119,1757335844728,-1898.86112012,0.0001337,2]
[384321136,1757335844868,-998.88649792,0.00013505,2]
[384321138,1757335844878,-300.0,0.00013505,2]
[384321139,1757335844887,-300.0,0.00013505,2]
[384321140,1757335844897,-300.0,0.00013505,2]
[384321141,1757335844907,-300.0,0.00013506,2]
[384321142,1757335844916,-300.0,0.00013506,2]
[384321143,1757335844925,-300.0,0.00013506,2]
[384321144,1757335844935,-300.0,0.00013506,2]
[384321145,1757335844944,-300.0,0.00013506,2]
[384321146,1757335844956,-300.0,0.00013506,2]
[384321147,1757335844966,-300.0,0.00013506,2]
[384321148,1757335844975,-300.0,0.00013506,2]
[384321149,1757335844985,-300.0,0.00013506,2]
[384321150,1757335844995,-300.0,0.00013506,2]
[384321151,1757335845004,-300.0,0.00013506,2]
[384321152,1757335845013,-300.0,0.00013506,2]
[384321153,1757335845023,-300.0,0.00013506,2]
[384321154,1757335845032,-300.0,0.00013506,2]
[384321155,1757335845043,-300.0,0.00013506,2]
[384321156,1757335845052,-50000.0,0.00013506,2]
[384321157,1757335845062,-612.78795264,0.00013542,2]
[384321158,1757335845071,-4891.38280936,0.00013542,2]
[384321159,1757335845080,-612.78795263,0.00013556,2]
[384321160,1757335845090,-612.78795263,0.0001357,2]
[384321162,1757335845099,-612.78795263,0.00013584,2]
[384321164,1757335845108,-500.0,0.0001359,2]
[384321166,1757335845118,-500.0,0.00013591,2]
[384321168,1757335845127,-396.33124802,0.00013591,2]
[384321170,1757335845137,-500.0,0.00013591,2]
[384321172,1757335845146,-500.0,0.00013591,2]
[384321174,1757335845155,-500.0,0.00013591,2]
[384321176,1757335845165,-500.0,0.00013591,2]
[384321178,1757335845174,-500.0,0.00013591,2]
[384321180,1757335845184,-297.43609668,0.00013591,2]
[384321182,1757335845193,-500.0,0.00013591,2]
[384321184,1757335845202,-500.0,0.00013591,2]
[384321186,1757335845212,-500.0,0.00013591,2]
[384321188,1757335845222,-500.0,0.00013591,2]
[384321190,1757335845231,-500.0,0.00013591,2]